Cogmind - Beta 10.2 @@@ ROGUE MODE // 2021.02.01 @ 09:05:27 Player: Demise Result: Destroyed by as-28479 with Assembled Maul Performance ------------- Evolutions (0) 0 Regions Visited (4) 800 Robots Destroyed (53) 265 Value Destroyed (798) 798 Prototype IDs (0) 0 Alien Tech Used (0) 0 Bonus (21) 21 TOTAL SCORE: 1884 Bonus ------- Follower Combat Kills 21 Cogmind --------- Core Integrity 0/250 Matter 236/300 Energy 125/125 System Corruption 0% Temperature Cool (0) Movement Core (1200) Ox23 Location -9/Mines Parts ------- > --- POWER (1) -------- Light Ion Engine > --- PROPULSION (2) --- (None) > --- UTILITY (2) ------ High-capacity Storage Unit High-capacity Storage Unit > --- WEAPON (2) ------- Assault Rifle Mini Grenade Launcher > --- INVENTORY (20) --- Large Storage Unit Large Storage Unit Large Storage Unit Humpback High-capacity Matter Pod (200) Signal Interpreter Improved Targeting Computer Light Armor Plating Reactive Plating Hacking Suite Improved Trap Extractor Light EM Pulse Cannon Light EM Pulse Cannon Assault Rifle Mini Grenade Launcher Missile Launcher Mining Laser Peak State ------------ > --- POWER ------------ Ion Engine > --- PROPULSION ------- Light Treads Light Treads > --- UTILITY ---------- Large Storage Unit High-capacity Storage Unit > --- WEAPON ----------- Light EM Pulse Cannon Light EM Pulse Cannon > --- INVENTORY -------- Light Treads Large Storage Unit Large Storage Unit Large Storage Unit High-capacity Matter Pod Signal Interpreter Improved Targeting Computer Light Armor Plating Hacking Suite Improved Trap Extractor Light EM Pulse Cannon Assault Rifle Assault Rifle Mini Grenade Launcher Mini Grenade Launcher Mini Grenade Launcher Missile Launcher Mining Laser [Rating: 12] Favorites ----------- Power Light Ion Engine Engine Light Ion Engine Power Core Light Nuclear Core Propulsion Light Treads Treads Light Treads Utility Large Storage Unit Storage Large Storage Unit Processor Signal Interpreter Protection Weapon Shielding Weapon Assault Rifle Energy Cannon Light EM Pulse Cannon Ballistic Gun Assault Rifle Launcher Mini Grenade Launcher Special Weapon Mining Laser Build | -11 -10 -10 -10 -9 ------- Run | Scr Mat Min Exi Min Slots Evolved . | . . . . . Power . | . . . . . Propulsion . | . . . . . Utility . | . . . . . Weapon . | . . . . . Parts Attached 57 | 4 27 12 2 12 Power 11 | . 5 2 . 4 Engine 10 | . 4 2 . 4 Core 1 | . 1 . . . Reactor . | . . . . . Propulsion 5 | 2 2 1 . . Treads 5 | 2 2 1 . . Leg . | . . . . . Wheel . | . . . . . Hover . | . . . . . Flight . | . . . . . Utility 9 | . 7 . 2 . Device . | . . . . . Storage 6 | . 4 . 2 . Processor 1 | . 1 . . . Hackware . | . . . . . Protection 2 | . 2 . . . Artifact . | . . . . . Weapon 32 | 2 13 9 . 8 Energy Gun . | . . . . . Energy Cannon 5 | . . 2 . 3 Ballistic Gun 20 | 2 8 7 . 3 Ballistic Cannon . | . . . . . Launcher 4 | . 2 . . 2 Special Weapon 3 | . 3 . . . Impact Weapon . | . . . . . Slashing Weapon . | . . . . . Piercing Weapon . | . . . . . Special Melee Weapon . | . . . . . Unidentified Prototypes . | . . . . . Parts Lost 5 | . . . . 5 Power 1 | . . . . 1 Propulsion 2 | . . . . 2 Utility . | . . . . . Weapon 2 | . . . . 2 Highest Loss Streak 3 | . . . . 3 Average Slot Usage (%) 98 | . 98 100 100 96 Engine 12 | . 11 14 14 13 Core 1 | . 2 . . . Treads 27 | . 28 28 28 25 Storage 25 | . 23 28 28 28 Protection 1 | . 2 . . . Energy Cannon 5 | . . 3 28 23 Ballistic Gun 22 | . 27 24 . 3 Naked Turns . | . . . . . Heaviest Build 77 | 3 55 61 77 77 Greatest Support 40 | 3 40 40 40 40 Greatest Overweight (x) 23 | . 1 1 1 23 Average Overweight (x) . | . . 1 1 1 Largest Inventory Capacity 20 | 4 18 18 20 20 Average Capacity 16 | 4 15 18 19 20 Most Carried 20 | 3 18 18 20 20 Average Carried 16 | 2 14 17 19 19 Final Capacity 20 | 4 18 18 20 20 Final Carried 20 | 3 18 18 20 18 Class Distribution -------------------- 86% | Mutant 13% | Hauler-Mutant Dominant Class ---------------- Mutant | -10/Materials Mutant | -10/Mines Hauler-Mutant | -10/Exiles Hauler-Mutant | -9/Mines Resources | -11 -10 -10 -10 -9 ----------- Run | Scr Mat Min Exi Min Matter Collected 1642 | 256 930 304 20 132 Remotely . | . . . . . Salvage Created 1530 | 112 967 337 . 114 Parts 103 | 3 68 31 . 1 Haulers Intercepted 1 | . 1 . . . Recyclers Shooed 3 | . 2 1 . . Parts Field Recycled . | . . . . . Retrieved Matter . | . . . . . Parts Self-Destructed . | . . . . . Prevented . | . . . . . Kills | -11 -10 -10 -10 -9 ------- Run | Scr Mat Min Exi Min Combat Hostiles Destroyed 41 | . 15 14 . 12 Guns 27 | . 11 14 . 2 Cannons 3 | . . . . 3 AOE 11 | . 4 . . 7 Classes Destroyed 12 | 2 8 . . 2 Worker 6 | . 6 . . . Builder 2 | . 2 . . . Tunneler 2 | 1 1 . . . Hauler 1 | . 1 . . . Recycler 6 | 1 4 1 . . Mechanic 1 | . 1 . . . Operator 1 | . 1 . . . Watcher 3 | . 3 . . . Swarmer 19 | . 6 12 . 1 Grunt 11 | . 9 2 . . Demolisher 1 | . . . . 1 Assembled 10 | . . . . 10 Best Kill Streak 7 | 2 5 3 . 7 Combat Bots Only 7 | . 3 3 . 7 Max Kills in Single Turn 5 | 1 4 1 . 5 Gunslinging . | . . . . . Exploded 5 | . 3 . . 5 Melee . | . . . . . Uniques/NPCs Destroyed . | . . . . . Combat | -11 -10 -10 -10 -9 -------- Run | Scr Mat Min Exi Min Damage Taken 1855 | . 552 446 . 857 Core 263 | . 115 63 . 85 Absorbed by Shields . | . . . . . Core Remaining (%) 100 | 100 . . . . Volleys Fired 180 | 4 101 45 . 30 Largest 2 | 2 2 2 . 2 Hottest 112 | 40 100 40 . 112 Shots Fired 342 | 8 197 90 . 47 Gun 303 | 8 189 90 . 16 Cannon 26 | . . . . 26 Launcher 9 | . 4 . . 5 Special 4 | . 4 . . . Kinetic 303 | 8 189 90 . 16 Thermal 4 | . 4 . . . Explosive 9 | . 4 . . 5 Electromagnetic 26 | . . . . 26 Robot Hit Streak 12 | 7 12 11 . 7 Robot Miss Streak 4 | 1 4 4 . 3 Penetration Max . | . . . . . Secondary Targets 1 | . . 1 . . Max Gunslinging Chain 1 | . . 1 . . Shots Hit Robots 210 | 7 120 56 . 27 Core Hits 102 | 3 53 22 . 24 Critical Hits . | . . . . . Critical Kills . | . . . . . Critical Parts Destroyed . | . . . . . Melee Attacks . | . . . . . Impact . | . . . . . Slashing . | . . . . . Piercing . | . . . . . Sneak Attacks . | . . . . . Combat Hostiles . | . . . . . Follow-up Attacks . | . . . . . Damage Inflicted 3364 | 77 1816 564 . 907 Guns 2147 | 77 1381 564 . 125 Cannons 231 | . . . . 231 Explosions 986 | . 435 . . 551 Melee . | . . . . . Ramming . | . . . . . Kinetic 2147 | 77 1381 564 . 125 Thermal 64 | . . . . 64 Explosive 922 | . 435 . . 487 Electromagnetic 231 | . . . . 231 Impact . | . . . . . Slashing . | . . . . . Piercing . | . . . . . Highest Corruption . | . . . . . Average Corruption . | . . . . . Corruption Purged . | . . . . . Overload Shots . | . . . . . Overflow Damage 3 | . 3 . . . Projectiles . | . . . . . Explosions 3 | . 3 . . . Melee . | . . . . . Knockbacks . | . . . . . Impact . | . . . . . Kinetic . | . . . . . Secondary . | . . . . . Self-Inflicted Damage . | . . . . . Shots . | . . . . . Rammed . | . . . . . Targets Rammed . | . . . . . Kicked . | . . . . . Crushed . | . . . . . Highest Temperature 210 | . 40 2 . 210 Average Temperature 35 | . 8 2 . 71 Received Heat Transfer 393 | . 237 96 . 60 Siege Activations . | . . . . . Robots Corrupted . | . . . . . Combat Hostiles . | . . . . . Parts Fried . | . . . . . Impact Corruptions . | . . . . . Robots Melted . | . . . . . Combat Hostiles . | . . . . . Parts Melted . | . . . . . Heat Transferred 50 | . . . . 50 Parts Sabotaged . | . . . . . Parts Stolen . | . . . . . Parts Stripped . | . . . . . Power Chain Reactions 1 | . . . . 1 Missiles Intercepted . | . . . . . Alert | -11 -10 -10 -10 -9 ------- Run | Scr Mat Min Exi Min Peak Influence 290 | 10 222 290 . 115 Initial 23 | . 6 23 . . Average 82 | 3 61 131 . 77 Maximum Alert Level 1 | . 1 1 . . Low Security (%) 91 | 100 97 77 . 100 Level 1 8 | . 2 22 . . Level 2 . | . . . . . Level 3 . | . . . . . Level 4 . | . . . . . Level 5 . | . . . . . High Security . | . . . . . Max Security . | . . . . . Squads Dispatched 3 | . 3 . . . Investigation 2 | . 2 . . . Extermination . | . . . . . Reinforcement 1 | . 1 . . . Assault . | . . . . . Garrison . | . . . . . Intercept . | . . . . . Construction Impeded . | . . . . . Haulers Reinforced . | . . . . . Stealth | -11 -10 -10 -10 -9 --------- Run | Scr Mat Min Exi Min Distress Signals 1 | . 1 . . . Communications Jammed . | . . . . . Distress Signals . | . . . . . Times Spotted 65 | . 27 20 . 18 Peak Tracking Total 7 | . 4 6 . 7 Tactical Retreats 4 | . . 3 . 1 Traps | -11 -10 -10 -10 -9 ------- Run | Scr Mat Min Exi Min Traps Triggered . | . . . . . Indirectly . | . . . . . Trap Hack Attempts . | . . . . . Triggered . | . . . . . Disarmed . | . . . . . Reprogrammed . | . . . . . Reused . | . . . . . Traps Extracted . | . . . . . Installed . | . . . . . Triggered 1 | . . 1 . . Machines | -11 -10 -10 -10 -9 ---------- Run | Scr Mat Min Exi Min Machines Disabled 1 | . . . . 1 Max in Single Turn . | . . . . . Machines Sabotaged . | . . . . . Garrisons Compromised . | . . . . . Overloaded Fab Kills . | . . . . . Fab Network Shutdowns . | . . . . . Hacking | -11 -10 -10 -10 -9 --------- Run | Scr Mat Min Exi Min Machines Accessed 12 | . 10 1 1 . Terminals 7 | . 7 . . . Fabricators . | . . . . . Repair Stations 1 | . 1 . . . Recycling Units 2 | . 2 . . . Scanalyzers . | . . . . . Garrison Access . | . . . . . Total Hacks 38 | . 36 1 1 . Successful 31 | . 29 1 1 . Failed 7 | . 7 . . . Catastrophic . | . . . . . Database Lockouts . | . . . . . Manual 25 | . 25 . . . Terminals 24 | . 24 . . . Fabricators . | . . . . . Repair Stations 4 | . 4 . . . Recycling Units 8 | . 8 . . . Scanalyzers . | . . . . . Garrison Access . | . . . . . Terminal Hacks 14 | . 12 1 1 . Record 1 | . . . 1 . Part Schematic 2 | . 2 . . . Robot Analysis 5 | . 5 . . . Open Door 1 | . . 1 . . Branch Access Points 1 | . 1 . . . Terminal Index 1 | . 1 . . . Locate Traps 3 | . 3 . . . Fabricator Hacks . | . . . . . Repair Station Hacks 4 | . 4 . . . Scan Component 2 | . 2 . . . Repair 2 | . 2 . . . Recycling Unit Hacks 2 | . 2 . . . Retrieve Matter 1 | . 1 . . . Retrieve Components 1 | . 1 . . . Scanalyzer . | . . . . . Garrison Access Hacks . | . . . . . Unauthorized Hacks 11 | . 11 . . . Terminals 7 | . 7 . . . Track 1 | . 1 . . . Assimilate 2 | . 2 . . . Botnet 3 | . 3 . . . Operators 1 | . 1 . . . Fabricators . | . . . . . Repair Stations . | . . . . . Recycling Units 4 | . 4 . . . Reject 1 | . 1 . . . Mask 2 | . 2 . . . Tunnel 1 | . 1 . . . Scanalyzers . | . . . . . Garrison Access . | . . . . . Data Cores Recovered . | . . . . . Used . | . . . . . Hacking Detections 9 | . 9 . . . Full Trace Events 2 | . 2 . . . Feedback Events . | . . . . . Feedback Blocked . | . . . . . Robot Schematics Acquired . | . . . . . Robots Built . | . . . . . Matter . | . . . . . Time . | . . . . . Total Robot Build Rating . | . . . . . Part Schematics Acquired 2 | . 2 . . . Parts Built . | . . . . . Matter . | . . . . . Time . | . . . . . Total Part Build Rating . | . . . . . Parts Repaired 2 | . 2 . . . Time 52 | . 52 . . . Parts Recycled . | . . . . . Recycled Matter . | . . . . . Retrieved Matter 55 | . 55 . . . Retrieved Components 1 | . 1 . . . Parts Scanalyzed . | . . . . . Part Schematics Acquired . | . . . . . Parts Damaged . | . . . . . Bothacking | -11 -10 -10 -10 -9 ------------ Run | Scr Mat Min Exi Min Used RIF Installer . | . . . . . Robots Hacked . | . . . . . Non-combat . | . . . . . Combat . | . . . . . Robot Hacks Applied . | . . . . . Relay Couplers Released . | . . . . . Robots Rewired . | . . . . . Allies Hacked . | . . . . . Hacks Repelled . | . . . . . Allies | -11 -10 -10 -10 -9 -------- Run | Scr Mat Min Exi Min Total Allies 5 | . 2 3 . . Largest Group 3 | . 2 3 3 3 Highest-Rated Group 40 | . 20 40 40 40 Highest-Rated Ally 16 | . 10 16 16 16 Total Orders 5 | . 2 3 . . STAY 3 | . 1 2 . . FOLLOW 2 | . 1 1 . . Ally Attacks 17 | . . . . 17 Total Damage 210 | . . . . 210 Kills 5 | . . . . 5 Allies Corrupted 1 | . . . . 1 Allies Melted . | . . . . . Intel | -11 -10 -10 -10 -9 ------- Run | Scr Mat Min Exi Min Robot Analysis Total 5 | . 5 . . . Derelict Logs Recovered 1 | . . 1 . . Drone Launches . | . . . . . Drone Recoveries . | . . . . . Exploration | -11 -10 -10 -10 -9 ------------- Run | Scr Mat Min Exi Min Turns Passed 5296 | 37 2970 1419 422 448 Spaces Moved 2617 | 33 1506 681 233 164 Core 105 | 33 70 . . 2 Treads 2512 | . 1436 681 233 162 Legs . | . . . . . Wheels . | . . . . . Hover . | . . . . . Flight . | . . . . . Fastest Speed 50 | 50 50 180 180 180 Average Speed 170 | 50 165 180 180 192 Slowest Speed 1200 | 50 180 180 180 1200 Overloaded Moves . | . . . . . Propulsion Burnouts . | . . . . . Robots Hopped . | . . . . . Cave-ins Triggered . | . . . . . Exploration Rate (%) 58 | 3 99 98 60 30 Regions Visited 4 Branch Regions 3 Pre-discovered Areas 3 | . 1 1 1 . Known Exits Taken 1 | . 1 . . . Unknown Exits Taken 3 | 1 . 1 1 . Scrap Searched 3 | . . 2 . 1 Spaces Dug 12 | . 3 . . 9 Terrain Destroyed 71 | . 31 . . 40 Melee . | . . . . . Projectile 3 | . 3 . . . AOE 68 | . 28 . . 40 Terrain Rammed . | . . . . . Walls Destroyed . | . . . . . Machines Disabled . | . . . . . Actions | -11 -10 -10 -10 -9 --------- Run | Scr Mat Min Exi Min Total 3121 | 43 1791 800 236 251 Wait 193 | . 109 44 . 40 Move 2613 | 32 1505 680 232 164 Hop . | . . . . . Pick Up 40 | 3 30 5 1 1 Fast Attach 9 | 4 4 . . 1 Attach 10 | . 6 2 . 2 Detach 1 | . 1 . . . Swap 38 | . 17 10 2 9 Drop 37 | . 18 14 1 4 Fire 180 | 4 101 45 . 30 Melee . | . . . . . Ram . | . . . . . Kick . | . . . . . Crush . | . . . . . Escape Stasis . | . . . . . Rewire . | . . . . . Trap . | . . . . . Miscellaneous . | . . . . . Route ------- -11/Scrapyard -10/Materials (discovered 4 exits: *Mat x3 / *Min) -10/Mines (discovered 3 exits: *Mat x2 / *Exi) -10/Exiles (discovered 2 exits: [*Min x2]) -9/Mines History --------- Turn | Location | Event 23 | -11/Scrapyard | Discovered new exit (range 15) 38 | -11/Scrapyard | Entered Materials 51 | -10/Materials | Discovered new exit (range 9) 71 | -10/Materials | Discovered new exit (range 14) 307 | -10/Materials | Build established: Mutant 413 | -10/Materials | Discovered new exit (range 13) 437 | -10/Materials | Identified exit to Materials 960 | -10/Materials | Identified exit to Mines 1109 | -10/Materials | Discovered exit to Materials (range 15) 1896 | -10/Materials | Repaired Lgt. Treads 1923 | -10/Materials | Repaired Assault Rifle 3008 | -10/Materials | Entered Mines 3008 | -10/Mines | Accompanied by 1 ally 3015 | -10/Mines | Met a Derelict bent on vengeance 3081 | -10/Mines | Discovered exit to Materials (range 15) 3151 | -10/Mines | Deemed a non-threat by the Exiles lab entrance 3151 | -10/Mines | Discovered new exit (range 5) 3433 | -10/Mines | Core integrity fell below 50% 3907 | -10/Mines | Found a hidden stash of uninstalled traps 3975 | -10/Mines | Learned location of Zion (-7) 4166 | -10/Mines | Assisted by bots powering up and referring to "LRC-V3" 4193 | -10/Mines | Discovered exit to Materials (range 9) 4207 | -10/Mines | Met a Derelict who couldn't figure out how to use a Trap Extractor 4427 | -10/Mines | Entered Exiles 4427 | -10/Exiles | Accompanied by 3 allies 4456 | -10/Exiles | Discovered new exit (range 15) 4476 | -10/Exiles | Met 8R-AWN 4503 | -10/Exiles | Met EX-HEX 4601 | -10/Exiles | Met EX-DEC 4718 | -10/Exiles | Met EX-BIN 4835 | -10/Exiles | Discovered new exit (range 10) 4849 | -10/Exiles | Entered Mines 4849 | -9/Mines | Accompanied by 3 allies 4851 | -9/Mines | Build established: Hauler-Mutant 5043 | -9/Mines | Assembled infested the area 5093 | -9/Mines | Destroyed 7 combat bots 5138 | -9/Mines | Core integrity fell below 20% 5297 | -9/Mines | Destroyed by as-28479 with Assembled Maul Last Messages --------------- 05157_ The unstable cave ceiling collapses. 05161_ Acquired 15 matter. 05165_ Acquired Lgt. Ion Engine. 05175_ The unstable cave ceiling collapses. 05175_ Acquired 17 matter. 05180_ The unstable cave ceiling collapses. 05204_ as-33691 destroyed. 05211_ The unstable cave ceiling collapses. 05217_ Acquired 20 matter. 05248_ Critical hit. 05248_ Lgt. Treads destroyed. 05261_ Destroyed Asb. Hover Unit. 05267_ The unstable cave ceiling collapses. 05267_ as-12558 destroyed. 05275_ Knocked back. 05281_ Lgt. Assault Rifle destroyed. 05282_ as-89853 destroyed. 05284_ Knocked back. 05287_ The unstable cave ceiling collapses. 05295_ U-05 Engineer lays Concrete. Map ----- +----------------------------------------------------+ | | | ????????????????????????????????????????????????? | | ????#####?######????????????????????????????????? | | ???## ### ###????#######???????????????????? | | ??## ##??# ###?????????????????? | | ??# ##?# #?????????????????? | | ??# "### " #?????????????????? | | ??# ## #?????????????????? | | ??## #### %# # ########??????????? | | ???# #?## # # #??????????? | | ??# #?# "# """ #??????????? | | ??# #?# =# """ ##### #??????????? | | ??# ##?# = # """ #???# #??????????? | | ??# ##??## # #???# #??????????? | | ??## ##???## # #######?# ?????????? | | ???####???## "" # ##???????# """#????????? | | ??????????# "" #####????????# """#????????? | | ??????????# "" #???????????# """#????????? | | ??????????# ######??????# #????????? | | ??????????# ## ##?????########????????? | | ??????????# #?????????????????????? | | ??????????# ##?????????????????????? | | ??????????## ##?????????????????????? | | ???????????### #?????????????????????? | | ??????##????# #?????????????????????? | | ??????# ???# a@##?????????????????????? | | ??????# # ###??????????????????????? | | ??????" % # #???????????????????????? | | ??????"% ####??????????????????????? | | ??????# #??????????????????????? | | ??????# =## #??????????????????????? | | ??????### u # !% # #??????????????????????? | | ????????# ## ##! ?#??????????????????????? | | ????????# ?# ?? ???????????????????????? | | ????????# ?# ?? ??????????????????????? | | ???????? ??#### ?? # % ?????????????????????? | | ??????????? ?## ?? # # ????????????????????? | | ?????????? ???### ??###? ! ???????????????????? | | ?????????!|#??????#???????*%????????????????????? | | ????????????????????????????????????????????????? | | ????????????????????????????????????????????????? | | ????????????????????????????????????????????????? | | ????????????????????????????????????????????????? | | ????????????????????????????????????????????????? | | ????????????????????????????????????????????????? | | ????????????????????????????????????????????????? | | ????????????????????????????????????????????????? | | ????????????????????????????????????????????????? | | ????????????????????????????????????????????????? | | ????????????????????????????????????????????????? | +----------------------------------------------------+ Best States ------------- Heat Dissipation 25 Energy Generation 14 Energy Capacity 250 Matter Stores 300 Matter Capacity 300 Sight Range 16 Terrain Scan Density 10 Weapon Shielding 33 Evasion (%) 50 Recoil Reduction 2 Item Schematics ----------------- Hcp. Storage Unit | -10/Materials | Hacked Med. Storage Unit | -10/Materials | Hacked Robot Schematics ------------------ None Fabricated ------------ Nothing Alien Tech Used ----------------- None Achievements -------------- None Challenges ------------ None Game ------ Seed PointTransportWell Manual? 0 Play Time 00:35:13 Cumulative 257.1 hours Start 2021.02.01 @ 08:34:17 End 2021.02.01 @ 09:05:27 Sessions 1 Manual Loads 0 Difficulty Rogue Special Mode None Game No. 223 Rogue 223 Adventurer 0 Explorer 0 Win Type - Total 1 Types 0/0/0/1/0/0/0/0/0 Lore% 63 Gallery% 73 Achievement% 57 Wizard Run 0 Options --------- ASCII 0 Keyboard 1 Movement Numpad Keybinds 0 Fullscreen 1 Font 12/Terminus Map View 83x54 Tactical HUD 1 Map Filters NONE Filters NONE Steam 1 RUN: d5b00a5e-857e-41ee-8f32-823f27fd501c